fUSD/lending_fUSD_20240630
["ID","MTS","AMOUNT","RATE_DAILY","PERIOD"]
[330746797,1719755442541,-500.0,0.00013698,3]
[330746798,1719755442550,-500.0,0.00013698,3]
[330746799,1719755442569,-500.0,0.00013698,3]
[330746800,1719755442585,-293.95,0.00013698,3]
[330746801,1719755442596,-500.0,0.00013698,2]
[330746802,1719755442606,-500.0,0.00013698,3]
[330746803,1719755442615,-500.0,0.00013698,3]
[330746804,1719755442625,-500.0,0.00013698,3]
[330746805,1719755442636,-500.0,0.00013698,3]
[330746806,1719755442648,-690.44,0.00013698,3]
[330746807,1719755442659,-500.0,0.00013698,3]
[330746808,1719755442669,-502.26,0.00013698,3]
[330746809,1719755442679,-500.0,0.00013698,3]
[330746810,1719755442689,-500.0,0.00013698,3]
[330746811,1719755442698,-500.0,0.00013698,3]
[330746812,1719755442708,-500.0,0.00013698,3]
[330746813,1719755442718,-500.0,0.00013698,3]
[330746814,1719755442728,-500.0,0.00013698,3]
[330746815,1719755442739,-500.0,0.00013698,3]
[330746816,1719755442749,-500.0,0.00013698,3]
[330746817,1719755442759,-500.0,0.00013698,3]
[330746818,1719755442770,-500.0,0.00013698,3]
[330746819,1719755442779,-500.0,0.00013698,3]
[330746820,1719755442789,-500.0,0.00013698,3]
[330746821,1719755442799,-500.0,0.00013698,3]
[330746822,1719755442808,-151.0,0.00013698,2]
[330746823,1719755442818,-757.41,0.00013698,3]
[330746824,1719755442828,-500.0,0.00013698,3]
[330746825,1719755442838,-151.0,0.00013698,2]
[330746826,1719755442848,-500.0,0.00013698,3]
[330746827,1719755442858,-715.47,0.00013698,3]
[330746828,1719755442867,-500.0,0.00013698,3]
[330746829,1719755442877,-621.83,0.00013698,3]
[330746830,1719755442887,-500.0,0.00013698,3]
[330746831,1719755442897,-152.744927,0.00013698,2]
[330746832,1719755442906,-500.0,0.00013698,3]
[330746833,1719755442916,-571.76,0.00013698,3]
[330746834,1719755442926,-500.0,0.00013698,3]
[330746835,1719755442935,-500.0,0.00013698,3]
[330746836,1719755442945,-705.69,0.00013698,3]
[330746837,1719755442954,-500.0,0.00013698,3]
[330746838,1719755442964,-500.0,0.00013698,3]
[330746839,1719755442974,-556.81095137,0.00013698,3]
[330746840,1719755442985,-500.0,0.00013698,3]
[330746841,1719755442995,-500.0,0.00013698,3]
[330746842,1719755443005,-500.0,0.00013698,3]
[330746843,1719755443015,-500.0,0.00013698,3]
[330746844,1719755443025,-500.0,0.00013698,3]
[330746845,1719755443035,-166.844814,0.00013698,2]
[330746846,1719755443045,-532.86,0.00013698,3]
[330746847,1719755443055,-166.844814,0.00013698,2]
[330746848,1719755443064,-500.0,0.00013698,3]
[330746849,1719755443074,-675.41,0.00013698,3]
[330746850,1719755443084,-581.61,0.00013698,3]
[330746851,1719755443093,-663.09,0.00013698,3]
[330746852,1719755443103,-500.0,0.00013698,3]
[330746854,1719755443112,-500.0,0.00013698,3]
[330746856,1719755443122,-577.38,0.00013698,3]
[330746858,1719755443132,-500.0,0.00013698,3]
[330746860,1719755443141,-500.0,0.00013698,3]
[330746861,1719755443151,-500.0,0.00013698,3]
[330746863,1719755443162,-500.0,0.00013698,3]
[330746864,1719755443171,-500.0,0.00013698,3]
[330746866,1719755443180,-168.491002,0.00013698,2]
[330746867,1719755443190,-500.0,0.00013698,3]
[330746868,1719755443200,-540.81,0.00013698,3]
[330746869,1719755443211,-500.0,0.00013698,3]
[330746870,1719755443221,-168.491002,0.00013698,2]
[330746871,1719755443230,-718.0,0.00013698,3]
[330746872,1719755443240,-500.0,0.00013698,3]
[330746873,1719755443250,-574.88,0.00013698,3]
[330746874,1719755443261,-500.0,0.00013698,3]
[330746875,1719755443271,-652.08,0.00013698,3]
[330746876,1719755443280,-500.0,0.00013698,3]
[330746877,1719755443290,-500.0,0.00013698,3]
[330746878,1719755443300,-500.0,0.00013698,3]
[330746881,1719755443310,-920.11,0.00013698,3]
[330746884,1719755443319,-695.25,0.00013698,3]
[330746886,1719755443328,-500.0,0.00013698,3]
[330746888,1719755443338,-510.24,0.00013698,3]
[330746890,1719755443348,-500.0,0.00013698,3]
[330746893,1719755443358,-605.83,0.00013698,3]
[330746896,1719755443367,-677.83,0.00013698,3]
[330746899,1719755443377,-500.0,0.00013698,3]
[330746901,1719755443386,-151.0,0.00013698,2]
[330746903,1719755443396,-500.0,0.00013698,3]
[330746905,1719755443406,-500.0,0.00013698,3]
[330746908,1719755443416,-581.28,0.00013698,3]
[330746910,1719755443430,-151.0,0.00013698,2]
[330746911,1719755443440,-500.0,0.00013698,3]
[330746912,1719755443450,-812.74,0.00013698,3]
[330746913,1719755443460,-500.0,0.00013698,3]
[330746914,1719755443472,-500.0,0.00013698,3]
[330746915,1719755443482,-701.39,0.00013698,3]
[330746916,1719755443492,-620.73,0.00013698,3]
[330746917,1719755443502,-500.0,0.00013698,3]
[330746918,1719755443512,-500.0,0.00013698,3]
[330746919,1719755443523,-2842.02,0.00013698,3]
[330746920,1719755443535,-500.0,0.00013698,3]
[330746921,1719755443546,-500.0,0.00013698,3]
[330746922,1719755443558,-500.0,0.00013698,3]
[330746923,1719755443573,-188.75,0.00013698,2]
[330746924,1719755443593,-500.0,0.00013698,3]
[330746925,1719755443605,-500.0,0.00013698,3]
[330746926,1719755443615,-188.75,0.00013698,2]
[330746927,1719755443626,-553.86,0.00013698,3]
[330746928,1719755443636,-151.0,0.00013698,2]
[330746929,1719755443648,-621.88,0.00013698,3]
[330746930,1719755443658,-500.0,0.00013698,3]
[330746931,1719755443668,-500.0,0.00013698,3]
[330746932,1719755443678,-500.0,0.00013698,3]
[330746933,1719755443687,-500.0,0.00013698,3]
[330746934,1719755443698,-500.0,0.00013698,3]
[330746935,1719755443707,-151.0,0.00013698,2]
[330746936,1719755443718,-500.0,0.00013698,3]
[330746937,1719755443729,-500.0,0.00013698,3]
[330746938,1719755443738,-151.0,0.00013698,2]
[330746939,1719755443750,-500.0,0.00013698,3]
[330746940,1719755443760,-500.0,0.00013698,3]
[330746941,1719755443771,-500.0,0.00013698,3]
[330746942,1719755443781,-175.879831,0.00013698,2]
[330746943,1719755443791,-151.0,0.00013698,2]
[330746944,1719755443801,-500.0,0.00013698,3]
[330746945,1719755443811,-612.92,0.00013698,3]
[330746946,1719755443822,-500.0,0.00013698,3]
[330746947,1719755443832,-151.0,0.00013698,2]
[330746948,1719755443842,-500.0,0.00013698,3]
[330746949,1719755443853,-500.0,0.00013698,3]
[330746950,1719755443864,-151.0,0.00013698,2]
[330746951,1719755443874,-157.884872,0.00013698,2]
[330746952,1719755443884,-1755.82,0.00013698,3]
[330746953,1719755443896,-341.08,0.00013698,3]
[330746954,1719755443906,-681.93,0.00013698,3]
[330746955,1719755443915,-500.0,0.00013698,3]
[330746956,1719755443925,-500.0,0.00013698,3]
[330746957,1719755443935,-562.52,0.00013698,3]
[330746958,1719755443945,-500.0,0.00013698,3]
[330746959,1719755443955,-500.0,0.00013698,3]
[330746960,1719755443965,-151.0,0.00013698,2]
[330746961,1719755443975,-151.0,0.00013698,2]
[330746962,1719755443987,-500.0,0.00013698,3]
[330746963,1719755443998,-500.0,0.00013698,3]
[330746965,1719755444008,-1210.93,0.00013698,3]
[330746967,1719755444018,-757.31,0.00013698,3]
[330746968,1719755444028,-500.0,0.00013698,3]
[330746969,1719755444038,-631.07,0.00013698,3]
[330746970,1719755444047,-656.95,0.00013698,3]
[330746971,1719755444057,-738.1,0.00013698,3]
[330746972,1719755444066,-500.0,0.00013698,3]
[330746973,1719755444076,-500.0,0.00013698,3]
[330746974,1719755444087,-561.72,0.00013698,3]
[330746975,1719755444097,-500.0,0.00013698,3]
[330746976,1719755444107,-576.94,0.00013698,3]
[330746977,1719755444118,-500.0,0.00013698,3]
[330746978,1719755444127,-500.0,0.00013698,3]
[330746979,1719755444140,-500.0,0.00013698,3]
[330746980,1719755444155,-151.0,0.00013698,2]
[330746981,1719755444165,-500.0,0.00013698,3]
[330746982,1719755444175,-500.0,0.00013698,3]
[330746983,1719755444188,-623.674199,0.00013698,2]
[330746984,1719755444199,-748.82,0.00013698,3]
[330746985,1719755444209,-513.03,0.00013698,3]
[330746986,1719755444218,-500.0,0.00013698,3]
[330746987,1719755444228,-151.0,0.00013698,2]
[330746988,1719755444238,-623.674199,0.00013698,2]
[330746989,1719755444248,-1993.43,0.00013698,3]
[330746990,1719755444259,-851.99,0.00013698,3]
[330746991,1719755444269,-590.03,0.00013698,3]
[330746992,1719755444280,-151.0,0.00013698,2]
[330746993,1719755444290,-367.7,0.00013698,3]
[330746994,1719755444300,-704.42,0.00013698,3]
[330746995,1719755444310,-310.06,0.00013698,3]
[330746996,1719755444322,-258.23,0.00013698,3]
[330746997,1719755444332,-525.63,0.00013698,3]
[330746998,1719755444342,-151.0,0.00013698,2]
[330746999,1719755444352,-500.0,0.00013698,3]
[330747000,1719755444363,-500.0,0.00013698,3]
[330747001,1719755444373,-285.862107,0.00013698,2]
[330747002,1719755444383,-833.5,0.00013698,3]
[330747003,1719755444393,-151.0,0.00013698,2]
[330747004,1719755444403,-500.0,0.00013698,3]
[330747005,1719755444412,-500.0,0.00013698,3]
[330747006,1719755444422,-500.0,0.00013698,3]
[330747007,1719755444432,-500.0,0.00013698,3]
[330747008,1719755444442,-500.0,0.00013698,3]
[330747009,1719755444452,-500.0,0.00013698,3]
[330747010,1719755444462,-500.0,0.00013698,3]
[330747011,1719755444473,-500.0,0.00013698,3]
[330747012,1719755444483,-500.0,0.00013698,3]
[330747013,1719755444494,-500.0,0.00013698,3]
[330747014,1719755444503,-500.0,0.00013698,3]
[330747015,1719755444513,-500.0,0.00013698,3]
[330747016,1719755444523,-500.0,0.00013698,3]
[330747017,1719755444533,-500.0,0.00013698,3]
[330747018,1719755444543,-664.06,0.00013698,3]
[330747019,1719755444552,-500.0,0.00013698,3]
[330747020,1719755444562,-565.11,0.00013698,3]
[330747021,1719755444574,-500.0,0.00013698,3]
[330747022,1719755444585,-500.0,0.00013698,3]
[330747023,1719755444594,-500.0,0.00013698,3]
[330747024,1719755444604,-500.0,0.00013698,3]
[330747025,1719755444614,-500.0,0.00013698,3]
[330747026,1719755444624,-519.91,0.00013698,3]
[330747027,1719755444633,-500.0,0.00013698,3]
[330747028,1719755444643,-500.0,0.00013698,3]
[330747029,1719755444657,-500.0,0.00013698,3]
[330747030,1719755444667,-211.455261,0.00013698,2]
[330747031,1719755444678,-500.0,0.00013698,3]
[330747032,1719755444687,-230.573438,0.00013698,2]
[330747033,1719755444697,-500.0,0.00013698,3]
[330747034,1719755444707,-211.455261,0.00013698,2]
[330747035,1719755444716,-680.22,0.00013698,3]
[330747036,1719755444727,-500.0,0.00013698,3]
[330747037,1719755444737,-500.0,0.00013698,3]
[330747038,1719755444747,-763.34,0.00013698,3]
[330747039,1719755444756,-417.916904,0.00013698,2]
[330747040,1719755444766,-230.573438,0.00013698,2]
[330747041,1719755444775,-500.0,0.00013698,3]
[330747042,1719755444784,-351.72954391,0.00013698,3]
[330747043,1719755444794,-500.0,0.00013698,3]
[330747044,1719755444804,-500.0,0.00013698,3]
[330747045,1719755444814,-500.0,0.00013698,3]
[330747046,1719755444823,-500.0,0.00013698,3]
[330747047,1719755444833,-417.916904,0.00013698,2]
[330747048,1719755444843,-500.0,0.00013698,3]
[330747049,1719755444853,-502.66,0.00013698,3]
[330747050,1719755444862,-657.33,0.00013698,3]
[330747051,1719755444872,-500.0,0.00013698,3]
[330747052,1719755444882,-500.0,0.00013698,3]
[330747053,1719755444891,-726.36,0.00013698,3]
[330747054,1719755444902,-151.0,0.00013698,2]
[330747055,1719755444911,-151.0,0.00013698,2]
[330747056,1719755444921,-500.0,0.00013698,3]
[330747057,1719755444930,-500.0,0.00013698,3]
[330747058,1719755444940,-1038.06,0.00013698,3]
[330747059,1719755444950,-500.0,0.00013698,3]
[330747060,1719755444959,-151.0,0.00013698,2]
[330747061,1719755444969,-151.0,0.00013698,2]
[330747062,1719755444979,-500.0,0.00013698,3]
[330747063,1719755444991,-500.0,0.00013698,3]
[330747064,1719755445000,-588.22,0.00013698,3]
[330747065,1719755445010,-151.0,0.00013698,2]
[330747066,1719755445019,-151.0,0.00013698,2]
[330747067,1719755445029,-581.82,0.00013698,3]
[330747068,1719755445039,-151.0,0.00013698,2]
[330747069,1719755445048,-500.0,0.00013698,3]
[330747070,1719755445058,-151.0,0.00013698,2]
[330747071,1719755445069,-500.0,0.00013698,3]
[330747072,1719755445079,-500.0,0.00013698,3]
[330747073,1719755445088,-500.0,0.00013698,3]
[330747074,1719755445098,-500.0,0.00013698,3]
[330747075,1719755445107,-500.0,0.00013698,3]
[330747076,1719755445116,-623.056921,0.00013698,2]
[330747077,1719755445126,-500.0,0.00013698,3]
[330747078,1719755445135,-500.0,0.00013698,3]
[330747079,1719755445146,-623.056921,0.00013698,2]
[330747080,1719755445156,-871.16,0.00013698,3]
[330747081,1719755445165,-1237.1,0.00013698,3]
[330747082,1719755445175,-500.0,0.00013698,3]
[330747083,1719755445184,-500.0,0.00013698,3]
[330747084,1719755445194,-500.0,0.00013698,3]
[330747085,1719755445203,-500.0,0.00013698,3]
[330747086,1719755445213,-500.0,0.00013698,3]
[330747087,1719755445224,-978.48,0.00013698,3]
[330747088,1719755445234,-500.0,0.00013698,3]
[330747089,1719755445245,-190.505494,0.00013698,2]
[330747090,1719755445255,-298.05,0.00013698,3]
[330747091,1719755445264,-647.7,0.00013698,3]
[330747092,1719755445274,-515.55,0.00013698,3]
[330747093,1719755445285,-503.58,0.00013698,3]
[330747094,1719755445294,-190.505494,0.00013698,2]
[330747095,1719755445304,-500.0,0.00013698,3]
[330747096,1719755445315,-151.0,0.00013698,2]
[330747097,1719755445325,-500.0,0.00013698,3]
[330747098,1719755445335,-500.0,0.00013698,3]
[330747099,1719755445346,-731.31,0.00013698,3]
[330747100,1719755445356,-568.53,0.00013698,3]
[330747101,1719755445365,-727.04,0.00013698,3]
[330747102,1719755445375,-1021.286789,0.00013698,2]
[330747103,1719755445384,-151.0,0.00013698,2]
[330747104,1719755445394,-151.0,0.00013698,2]
[330747105,1719755445404,-500.0,0.00013698,3]
[330747106,1719755445413,-500.0,0.00013698,3]
[330747107,1719755445423,-518.38,0.00013698,3]
[330747108,1719755445434,-500.0,0.00013698,3]
[330747109,1719755445443,-445.294759,0.00013698,2]
[330747110,1719755445453,-845.38,0.00013698,3]
[330747111,1719755445464,-500.0,0.00013698,3]
[330747112,1719755445727,-653.03,0.00013698,3]
[330747113,1719755445737,-1124.32,0.00013698,3]
[330747114,1719755445747,-151.0,0.00013698,2]
[330747115,1719755445756,-445.294759,0.00013698,2]
[330747116,1719755445767,-500.0,0.00013698,3]
[330747117,1719755445778,-500.0,0.00013698,3]
[330747118,1719755445788,-500.0,0.00013698,3]
[330747119,1719755445797,-151.0,0.00013698,2]
[330747120,1719755445807,-250.0,0.00013698,3]
[330747121,1719755445816,-680.8,0.00013698,3]
[330747122,1719755445827,-500.0,0.00013698,3]
[330747123,1719755445838,-500.0,0.00013698,3]
[330747124,1719755445847,-151.0,0.00013698,2]
[330747125,1719755445858,-1020.54,0.00013698,3]
[330747126,1719755445868,-500.0,0.00013698,3]
[330747127,1719755445878,-500.0,0.00013698,3]
[330747128,1719755445887,-500.0,0.00013698,3]
[330747129,1719755445898,-500.0,0.00013698,3]
[330747130,1719755445907,-786.17,0.00013698,3]
[330747131,1719755445917,-500.0,0.00013698,3]
[330747132,1719755445926,-500.0,0.00013698,3]
[330747133,1719755445935,-500.0,0.00013698,3]
[330747134,1719755445945,-500.0,0.00013698,2]
[330747135,1719755445955,-582.78,0.00013698,3]
[330747136,1719755445964,-500.0,0.00013698,3]
[330747137,1719755445974,-500.0,0.00013698,3]
[330747138,1719755445985,-151.0,0.00013698,2]
[330747139,1719755445994,-544.15,0.00013698,3]
[330747140,1719755446004,-500.0,0.00013698,3]
[330747141,1719755446014,-500.0,0.00013698,3]
[330747142,1719755446023,-500.0,0.00013698,3]
[330747143,1719755446033,-151.0,0.00013698,2]
[330747144,1719755446043,-4117.59,0.00013698,3]
[330747146,1719755446052,-437.423639,0.00013698,2]
[330747148,1719755446062,-500.0,0.00013698,3]
[330747150,1719755446072,-500.0,0.00013698,3]
[330747151,1719755446082,-176.836697,0.00013698,2]
[330747152,1719755446092,-437.423639,0.00013698,2]
[330747153,1719755446101,-500.0,0.00013698,3]
[330747154,1719755446111,-500.0,0.00013698,3]
[330747155,1719755446120,-500.0,0.00013698,3]
[330747156,1719755446130,-613.82,0.00013698,3]
[330747157,1719755446140,-500.0,0.00013698,3]
[330747158,1719755446151,-230.305039,0.00013698,2]
[330747159,1719755446160,-500.0,0.00013698,3]
[330747160,1719755446170,-9703.03304,0.00013698,2]
[330747162,1719755446180,-766.18,0.00013698,3]
[330747164,1719755446190,-151.0,0.00013698,2]
[330747166,1719755446200,-230.305039,0.00013698,2]
[330747168,1719755446209,-500.0,0.00013698,3]
[330747170,1719755446219,-842.1,0.00013698,3]
[330747172,1719755446229,-500.0,0.00013698,3]
[330747173,1719755446239,-500.0,0.00013698,3]
[330747174,1719755446249,-500.0,0.00013698,3]
[330747175,1719755446259,-500.0,0.00013698,3]
[330747176,1719755446268,-500.0,0.00013698,3]
[330747177,1719755446278,-500.0,0.00013698,3]
[330747178,1719755446289,-933.76,0.00013698,3]
[330747179,1719755446299,-500.0,0.00013698,3]
[330747180,1719755446309,-500.0,0.00013698,3]
[330747181,1719755446319,-500.0,0.00013698,3]
[330747182,1719755446328,-500.0,0.00013698,3]
[330747183,1719755446338,-500.0,0.00013698,3]
[330747184,1719755446348,-500.0,0.00013698,3]
[330747185,1719755446358,-500.0,0.00013698,3]
[330747186,1719755446367,-1403.52,0.00013698,3]
[330747187,1719755446377,-500.0,0.00013698,3]
[330747188,1719755446387,-500.0,0.00013698,3]
[330747189,1719755446398,-500.0,0.00013698,3]
[330747190,1719755446408,-500.0,0.00013698,3]
[330747191,1719755446419,-500.0,0.00013698,3]
[330747192,1719755446428,-500.0,0.00013698,3]
[330747193,1719755446438,-500.0,0.00013698,3]
[330747194,1719755446448,-500.0,0.00013698,3]
[330747195,1719755446458,-500.0,0.00013698,3]
[330747196,1719755446467,-534.11,0.00013698,3]
[330747197,1719755446477,-500.0,0.00013698,3]
[330747198,1719755446486,-500.0,0.00013698,3]
[330747199,1719755446496,-500.0,0.00013698,3]
[330747200,1719755446506,-503.060598,0.00013698,2]
[330747201,1719755446516,-500.0,0.00013698,3]
[330747202,1719755446527,-304.780686,0.00013698,2]
[330747203,1719755446536,-500.0,0.00013698,3]
[330747204,1719755446546,-503.060598,0.00013698,2]
[330747205,1719755446558,-573.903452,0.00013698,2]
[330747206,1719755446568,-1137.4,0.00013698,3]
[330747207,1719755446585,-500.0,0.00013698,3]
[330747208,1719755446595,-518.15,0.00013698,3]
[330747209,1719755446605,-500.0,0.00013698,3]
[330747210,1719755446615,-648.58,0.00013698,3]
[330747211,1719755446625,-668.63,0.00013698,3]
[330747212,1719755446634,-500.0,0.00013698,3]
[330747213,1719755446645,-500.0,0.00013698,3]
[330747214,1719755446656,-304.780686,0.00013698,2]
[330747215,1719755446667,-1083.957781,0.00013698,2]
[330747216,1719755446676,-500.0,0.00013698,3]
[330747217,1719755446686,-573.903452,0.00013698,2]
[330747218,1719755446696,-500.0,0.00013698,3]
[330747219,1719755446705,-1083.957781,0.00013698,2]
[330747220,1719755446715,-750.23,0.00013698,3]
[330747221,1719755446725,-500.0,0.00013698,3]
[330747222,1719755446735,-500.0,0.00013698,3]
[330747223,1719755446745,-500.0,0.00013698,3]
[330747224,1719755446754,-500.0,0.00013698,3]
[330747225,1719755446764,-565.47,0.00013698,3]
[330747226,1719755446773,-964.26,0.00013698,3]
[330747227,1719755446783,-500.0,0.00013698,3]
[330747228,1719755446792,-500.0,0.00013698,3]
[330747229,1719755446802,-502.48,0.00013698,3]
[330747230,1719755446812,-500.0,0.00013698,3]
[330747231,1719755446822,-905.38,0.00013698,3]
[330747232,1719755446831,-1355.12,0.00013698,3]
[330747233,1719755446841,-762.19,0.00013698,3]
[330747234,1719755446851,-267.298398,0.00013698,2]
[330747236,1719755446860,-500.0,0.00013698,3]
[330747238,1719755446869,-500.0,0.00013698,3]
[330747240,1719755446879,-500.0,0.00013698,3]
[330747242,1719755446889,-500.0,0.00013698,3]
[330747244,1719755446899,-151.0,0.00013698,2]
[330747245,1719755446908,-267.298398,0.00013698,2]
[330747246,1719755446918,-662.1,0.00013698,3]
[330747247,1719755446927,-500.0,0.00013698,3]
[330747248,1719755446937,-151.0,0.00013698,2]
[330747249,1719755446946,-151.0,0.00013698,2]
[330747250,1719755446956,-231.851772,0.00013698,2]
[330747251,1719755446965,-765.23,0.00013698,3]
[330747253,1719755446975,-690.29,0.00013698,3]
[330747255,1719755446985,-877.24,0.00013698,3]
[330747256,1719755446995,-500.0,0.00013698,3]
[330747257,1719755447005,-2125.733205,0.00013698,2]
[330747258,1719755447014,-713.88,0.00013698,3]
[330747259,1719755447023,-1457.02,0.00013698,3]
[330747260,1719755447032,-500.0,0.00013698,3]
[330747261,1719755447042,-500.0,0.00013698,3]
[330747262,1719755447051,-231.851772,0.00013698,2]
[330747263,1719755447060,-2125.733205,0.00013698,2]
[330747264,1719755447070,-500.0,0.00013698,3]
[330747265,1719755447080,-1059.53,0.00013698,3]
[330747266,1719755447089,-405.042875,0.00013698,2]
[330747267,1719755447099,-639.03,0.00013698,3]
[330747268,1719755447109,-1241.5,0.00013698,3]
[330747269,1719755447118,-151.0,0.00013698,2]
[330747270,1719755447128,-405.042875,0.00013698,2]
[330747271,1719755447137,-500.0,0.00013698,3]
[330747272,1719755447147,-151.0,0.00013698,2]
[330747273,1719755447158,-500.0,0.00013698,3]
[330747274,1719755447168,-500.0,0.00013698,3]
[330747275,1719755447178,-500.0,0.00013698,3]
[330747276,1719755447188,-737.63,0.00013698,3]
[330747277,1719755447198,-500.0,0.00013698,3]
[330747278,1719755447208,-151.0,0.00013698,2]
[330747279,1719755447218,-1349.88,0.00013698,3]
[330747280,1719755447228,-500.0,0.00013698,3]
[330747281,1719755447238,-500.0,0.00013698,3]
[330747282,1719755447248,-151.0,0.00013698,2]
[330747283,1719755447257,-500.0,0.00013698,3]
[330747284,1719755447266,-604.72,0.00013698,3]
[330747285,1719755447276,-561.34,0.00013698,3]
[330747286,1719755447286,-500.0,0.00013698,3]
[330747287,1719755447296,-500.0,0.00013698,3]
[330747288,1719755447306,-500.0,0.00013698,3]
[330747289,1719755447316,-500.0,0.00013698,3]
[330747290,1719755447325,-191.133074,0.00013698,2]
[330747291,1719755447335,-957.39,0.00013698,3]
[330747292,1719755447345,-500.0,0.00013698,3]
[330747293,1719755447355,-151.0,0.00013698,2]
[330747294,1719755447365,-500.0,0.00013698,3]
[330747295,1719755447375,-764.6,0.00013698,3]
[330747296,1719755447385,-191.133074,0.00013698,2]
[330747297,1719755447395,-660.46,0.00013698,3]
[330747298,1719755447406,-500.0,0.00013698,3]
[330747299,1719755447415,-604.79,0.00013698,3]
[330747300,1719755447428,-500.0,0.00013698,3]
[330747301,1719755447439,-905.53,0.00013698,3]
[330747302,1719755447449,-151.0,0.00013698,2]
[330747303,1719755447459,-500.0,0.00013698,3]
[330747304,1719755447469,-526.22,0.00013698,3]
[330747305,1719755447478,-500.0,0.00013698,3]
[330747306,1719755447487,-229.488912,0.00013698,2]
[330747307,1719755447497,-229.488912,0.00013698,2]
[330747308,1719755447507,-500.0,0.00013698,3]
[330747309,1719755447518,-500.0,0.00013698,3]
[330747310,1719755447528,-500.0,0.00013698,3]
[330747311,1719755447538,-622.84,0.00013698,3]
[330747312,1719755447548,-1277.66,0.00013698,3]
[330747313,1719755447558,-500.0,0.00013698,3]
[330747314,1719755447568,-500.0,0.00013698,3]
[330747315,1719755447582,-1641.91,0.00013698,3]
[330747316,1719755447592,-500.0,0.00013698,3]
[330747317,1719755447602,-500.0,0.00013698,3]
[330747318,1719755447613,-151.0,0.00013698,2]
[330747319,1719755447623,-707.52,0.00013698,3]
[330747320,1719755447632,-500.0,0.00013698,3]
[330747321,1719755447643,-616.94,0.00013698,3]
[330747322,1719755447656,-151.0,0.00013698,2]
[330747323,1719755447665,-151.0,0.00013698,2]
[330747324,1719755447674,-151.0,0.00013698,2]
[330747325,1719755447683,-500.0,0.00013698,3]
[330747326,1719755447693,-1304.99,0.00013698,3]
[330747327,1719755447703,-620.52,0.00013698,3]
[330747328,1719755447713,-500.0,0.00013698,3]
[330747329,1719755447722,-500.0,0.00013698,3]
[330747330,1719755447731,-500.0,0.00013698,3]
[330747331,1719755447741,-500.0,0.00013698,3]
[330747332,1719755447752,-721.33,0.00013698,3]
[330747333,1719755447762,-700.83,0.00013698,3]
[330747334,1719755447772,-500.0,0.00013698,3]
[330747335,1719755447781,-504.24,0.00013698,3]
[330747336,1719755447790,-832.16,0.00013698,3]
[330747337,1719755447800,-500.0,0.00013698,3]
[330747338,1719755447810,-614.4,0.00013698,3]
[330747339,1719755447820,-151.0,0.00013698,2]